lending/lending_fUSD_20240705
["ID","MTS","AMOUNT","RATE_DAILY","PERIOD"]
[331258330,1720167621530,-150.0,0.00042953,30]
[331258331,1720167621556,-462.6228344,0.00042962,30]
[331258332,1720167621584,-152.59839612,0.00042962,30]
[331258333,1720167621608,-199.74954741,0.00042962,30]
[331258334,1720167621634,-308.94299,0.0004299,30]
[331258335,1720167621661,-1763.964623,0.0004299,30]
[331258336,1720167621690,-50000.0,0.00043,33]
[331258337,1720167621719,-50000.0,0.00043,43]
[331258338,1720167621750,-512.74833987,0.00043,30]
[331258339,1720167621774,-719.44467042,0.00043,120]
[331258340,1720167621800,-2000.0,0.00043,120]
[331258341,1720167621823,-1214.75257468,0.00043,120]
[331258342,1720167621850,-3000.0,0.00043,95]
[331258343,1720167621875,-1292.73536742,0.00043,60]
[331258344,1720167621900,-150.0,0.00043002,30]
[331258345,1720167621926,-462.6228344,0.0004301,30]
[331258346,1720167621950,-152.59839612,0.0004301,30]
[331258347,1720167621976,-199.74954741,0.0004301,30]
[331258348,1720167622005,-2851.75598977,0.0004301,120]
[331258349,1720167622031,-510.0,0.00043013,120]
[331258350,1720167622056,-462.6228344,0.00043057,30]
[331258351,1720167622083,-152.59839612,0.00043057,30]
[331258352,1720167622106,-199.74954741,0.00043057,30]
[331258353,1720167622136,-462.6228344,0.00043104,30]
[331258354,1720167622160,-152.59839612,0.00043104,30]
[331258355,1720167622186,-199.74954741,0.00043104,30]
[331258356,1720167622212,-150.0,0.00043107,120]
[331258357,1720167622239,-150.0,0.00043109,30]
[331258358,1720167622263,-462.6228344,0.00043151,30]
[331258359,1720167622288,-152.59839612,0.00043151,30]
[331258360,1720167622314,-199.74954741,0.00043151,30]
[331258361,1720167622341,-150.0,0.00043186,30]
[331258362,1720167622366,-462.6228344,0.00043198,30]
[331258363,1720167622392,-152.59839612,0.00043198,30]
[331258364,1720167622416,-199.74954741,0.00043198,30]
[331258365,1720167622442,-462.6228344,0.00043245,30]
[331258366,1720167622472,-152.59839612,0.00043245,30]
[331258367,1720167622504,-199.74954741,0.00043245,30]
[331258368,1720167622529,-150.0,0.00043248,30]
[331258369,1720167622555,-150.0,0.00043264,30]
[331258370,1720167622582,-246.54028189,0.00043287,120]
[331258371,1720167622607,-462.6228344,0.00043293,30]
[331258372,1720167622633,-152.59839612,0.00043293,30]
[331258373,1720167622660,-199.74954741,0.00043293,30]
[331258374,1720167622686,-462.6228344,0.0004334,30]
[331258375,1720167622712,-152.59839612,0.0004334,30]
[331258376,1720167622740,-199.74954741,0.0004334,30]
[331258377,1720167622765,-462.6228344,0.00043387,30]
[331258378,1720167622790,-152.59839612,0.00043387,30]
[331258379,1720167622815,-199.74954741,0.00043387,30]
[331258380,1720167622840,-150.0,0.0004342,30]
[331258381,1720167622866,-462.6228344,0.00043434,30]
[331258382,1720167622892,-152.59839612,0.00043434,30]
[331258383,1720167622916,-199.74954741,0.00043434,30]
[331258384,1720167622942,-462.6228344,0.00043481,30]
[331258385,1720167622968,-152.59839612,0.00043481,30]
[331258386,1720167622995,-199.74954741,0.00043481,30]
[331258387,1720167623020,-150.0,0.00043494,30]
[331258388,1720167623046,-462.6228344,0.00043528,30]
[331258389,1720167623071,-152.59839612,0.00043528,30]
[331258390,1720167623100,-199.74954741,0.00043528,30]
[331258391,1720167623127,-183.84444444,0.00043562,120]
[331258392,1720167623156,-462.6228344,0.00043575,30]
[331258393,1720167623183,-152.59839612,0.00043575,30]
[331258394,1720167623210,-199.74954741,0.00043575,30]
[331258395,1720167623238,-150.0,0.00043575,30]
[331258396,1720167623446,-462.6228344,0.00043623,30]
[331258397,1720167623472,-152.59839612,0.00043623,30]
[331258398,1720167623500,-199.74954741,0.00043623,30]
[331258399,1720167623524,-462.6228344,0.0004367,30]
[331258400,1720167623552,-152.59839612,0.0004367,30]
[331258401,1720167623580,-199.74954741,0.0004367,30]
[331258402,1720167623604,-1052.46452582,0.00043698,120]
[331258403,1720167623631,-151.0,0.00043699,120]
[331258404,1720167623656,-534.26759159,0.000437,120]
[331258405,1720167623680,-154.80021874,0.000437,120]
[331258406,1720167623706,-462.6228344,0.00043717,30]
[331258407,1720167623736,-152.59839612,0.00043717,30]
[331258408,1720167623765,-199.74954741,0.00043717,30]
[331258409,1720167623791,-150.0,0.00043731,30]
[331258410,1720167623816,-150.0,0.00043739,30]
[331258411,1720167623841,-1202.5199114,0.00043748,120]
[331258412,1720167623868,-192.25,0.00043756,120]
[331258413,1720167623894,-462.6228344,0.00043764,30]
[331258414,1720167623922,-152.59839612,0.00043764,30]
[331258415,1720167623948,-199.74954741,0.00043764,30]
[331258416,1720167623974,-464.79535218,0.000438,30]
[331258417,1720167624004,-735.1857516,0.000438,120]
[331258418,1720167624030,-1414.60023453,0.000438,111]
[331258419,1720167624058,-462.6228344,0.00043811,30]
[331258420,1720167624084,-152.59839612,0.00043811,30]
[331258421,1720167624131,-199.74954741,0.00043811,30]
[331258422,1720167624161,-500.0,0.00043835,120]
[331258423,1720167624189,-1000.0,0.00043835,70]
[331258424,1720167624218,-2945.59,0.00043835,120]
[331258425,1720167624248,-542.91178772,0.00043835,30]
[331258426,1720167624276,-500.0,0.00043835,120]
[331258427,1720167624305,-462.6228344,0.00043858,30]
[331258428,1720167624334,-152.59839612,0.00043858,30]
[331258429,1720167624866,-199.74954741,0.00043858,30]
[331258430,1720167624894,-150.0,0.00043887,30]
[331258431,1720167624922,-464.59780118,0.000439,120]
[331258432,1720167624956,-462.6228344,0.00043906,30]
[331258433,1720167624992,-152.59839612,0.00043906,30]
[331258434,1720167625022,-199.74954741,0.00043906,30]
[331258435,1720167625055,-2814.9,0.00043951,99]
[331258436,1720167625086,-462.6228344,0.00043953,30]
[331258437,1720167625118,-152.59839612,0.00043953,30]
[331258438,1720167625151,-199.74954741,0.00043953,30]
[331258439,1720167625411,-150.0,0.00043975,120]
[331258440,1720167625439,-150.0,0.00043985,30]
[331258441,1720167625469,-50000.0,0.00044,34]
[331258442,1720167625502,-50000.0,0.00044,44]
[331258443,1720167625532,-462.6228344,0.00044,30]
[331258444,1720167625561,-152.59839612,0.00044,30]
[331258445,1720167625596,-199.74954741,0.00044,30]
[331258446,1720167625626,-1000.0,0.00044,120]
[331258447,1720167625656,-297.10652674,0.00044,30]
[331258448,1720167625685,-736.63010231,0.00044,120]
[331258449,1720167625712,-1100.0,0.00044,120]
[331258450,1720167625739,-1860.56,0.00044,30]
[331258451,1720167625768,-655.043625,0.00044,57]
[331258452,1720167625795,-150.0,0.00044042,30]
[331258453,1720167625822,-462.6228344,0.00044047,30]
[331258454,1720167625849,-152.59839612,0.00044047,30]
[331258455,1720167625875,-199.74954741,0.00044047,30]
[331258456,1720167625903,-462.6228344,0.00044094,30]
[331258457,1720167625932,-152.59839612,0.00044094,30]
[331258458,1720167625959,-199.74954741,0.00044094,30]
[331258459,1720167625987,-229.0,0.0004412,30]
[331258460,1720167626014,-462.6228344,0.00044141,30]
[331258461,1720167626041,-152.59839612,0.00044141,30]
[331258462,1720167626068,-199.74954741,0.00044141,30]
[331258463,1720167626094,-462.6228344,0.00044189,30]
[331258464,1720167626121,-152.59839612,0.00044189,30]
[331258465,1720167626151,-199.74954741,0.00044189,30]
[331258466,1720167626379,-150.0,0.00044198,30]
[331258467,1720167626409,-1388.2922459,0.000442,120]
[331258468,1720167626437,-1388.2922459,0.000442,120]
[331258469,1720167626464,-1388.2922459,0.000442,120]
[331258470,1720167626490,-1388.2922459,0.000442,120]
[331258471,1720167626516,-1388.2922459,0.000442,120]
[331258472,1720167626545,-150.0,0.00044231,30]
[331258473,1720167626572,-462.6228344,0.00044236,30]
[331258474,1720167626603,-152.59839612,0.00044236,30]
[331258475,1720167626630,-199.74954741,0.00044236,30]
[331258476,1720167626657,-2567.42897403,0.0004426,45]
[331258477,1720167626684,-183.84444444,0.00044274,120]
[331258478,1720167626711,-462.6228344,0.00044283,30]
[331258479,1720167626739,-152.59839612,0.00044283,30]
[331258480,1720167626766,-199.74954741,0.00044283,30]
[331258481,1720167626794,-415.34727776,0.000443,120]
[331258482,1720167626822,-462.6228344,0.0004433,30]
[331258483,1720167626849,-152.59839612,0.0004433,30]
[331258484,1720167626875,-199.74954741,0.0004433,30]
[331258485,1720167626900,-150.0,0.00044354,30]
[331258486,1720167626927,-150.0,0.00044354,30]
[331258487,1720167626954,-150.0,0.00044354,30]
[331258488,1720167626981,-462.6228344,0.00044377,30]
[331258489,1720167627007,-152.59839612,0.00044377,30]
[331258490,1720167627034,-199.74954741,0.00044377,30]
[331258491,1720167627061,-157.96725436,0.0004438,120]
[331258492,1720167627087,-158.46,0.0004438,120]
[331258493,1720167627114,-220.49218982,0.0004438,120]
[331258494,1720167627143,-220.49218982,0.0004438,120]
[331258495,1720167627172,-220.49218982,0.0004438,120]
[331258496,1720167627198,-220.49218982,0.0004438,120]
[331258497,1720167627421,-220.49218982,0.0004438,120]
[331258498,1720167627449,-220.49218982,0.0004438,120]
[331258499,1720167627476,-220.49218982,0.0004438,120]
[331258500,1720167627505,-220.49218982,0.0004438,120]
[331258501,1720167627532,-220.49218982,0.0004438,120]
[331258502,1720167627560,-220.49218982,0.0004438,120]
[331258503,1720167627589,-220.49218982,0.0004438,120]
[331258504,1720167627615,-220.49218982,0.0004438,120]
[331258505,1720167627640,-220.49218982,0.0004438,120]
[331258506,1720167627894,-220.49218982,0.0004438,120]
[331258507,1720167627921,-220.49218982,0.0004438,120]
[331258508,1720167627948,-220.49218982,0.0004438,120]
[331258509,1720167627975,-220.49218982,0.0004438,120]
[331258510,1720167628006,-220.49218982,0.0004438,120]
[331258511,1720167628031,-220.49218982,0.0004438,120]
[331258512,1720167628056,-220.99,0.0004438,120]
[331258513,1720167628082,-182.88307163,0.0004438,120]
[331258514,1720167628107,-182.88307163,0.0004438,120]
[331258515,1720167628137,-182.88307163,0.0004438,120]
[331258516,1720167628373,-182.88307163,0.0004438,120]
[331258517,1720167628625,-182.88307163,0.0004438,120]
[331258518,1720167628652,-182.88307163,0.0004438,120]
[331258519,1720167628680,-182.88307163,0.0004438,120]
[331258520,1720167628707,-182.88307163,0.0004438,120]
[331258521,1720167628738,-182.88307163,0.0004438,120]
[331258522,1720167628764,-182.88307163,0.0004438,120]
[331258523,1720167628790,-182.88307163,0.0004438,120]
[331258524,1720167628816,-182.88307163,0.0004438,120]
[331258525,1720167629039,-182.88307163,0.0004438,120]
[331258526,1720167629293,-182.88307163,0.0004438,120]
[331258527,1720167629320,-182.88307163,0.0004438,120]
[331258528,1720167629346,-182.88307163,0.0004438,120]
[331258529,1720167629372,-182.88307163,0.0004438,120]
[331258530,1720167629397,-182.88307163,0.0004438,120]
[331258531,1720167629423,-182.88307163,0.0004438,120]
[331258532,1720167629450,-183.38,0.0004438,120]
[331258533,1720167629475,-247.57312849,0.0004438,120]
[331258534,1720167629710,-247.57312849,0.0004438,120]
[331258535,1720167629736,-247.57312849,0.0004438,120]
[331258536,1720167629764,-247.57312849,0.0004438,120]
[331258537,1720167629790,-247.57312849,0.0004438,120]
[331258538,1720167629815,-247.57312849,0.0004438,120]
[331258539,1720167629842,-247.57312849,0.0004438,120]
[331258540,1720167629868,-247.57312849,0.0004438,120]
[331258541,1720167629895,-247.57312849,0.0004438,120]
[331258542,1720167629921,-247.57312849,0.0004438,120]
[331258543,1720167630158,-247.57312849,0.0004438,120]
[331258544,1720167630183,-247.57312849,0.0004438,120]
[331258545,1720167630211,-247.57312849,0.0004438,120]
[331258546,1720167630239,-247.57312849,0.0004438,120]
[331258547,1720167630264,-247.57312849,0.0004438,120]
[331258548,1720167630289,-247.57312849,0.0004438,120]
[331258549,1720167630314,-247.57312849,0.0004438,120]
[331258550,1720167630339,-247.57312849,0.0004438,120]
[331258551,1720167630365,-247.57312849,0.0004438,120]
[331258552,1720167631089,-248.07,0.0004438,120]
[331258553,1720167631599,-500.0,0.00044383,120]
[331258554,1720167631627,-500.0,0.00044383,120]
[331258555,1720167631652,-914.99,0.00044384,120]
[331258556,1720167631680,-1010.87,0.00044384,120]
[331258557,1720167631707,-462.6228344,0.00044424,30]
[331258558,1720167631731,-152.59839612,0.00044424,30]
[331258559,1720167631758,-199.74954741,0.00044424,30]
[331258560,1720167631784,-462.6228344,0.00044471,30]
[331258561,1720167631810,-152.59839612,0.00044471,30]
[331258562,1720167631835,-199.74954741,0.00044471,30]
[331258563,1720167631860,-150.0,0.00044476,30]
[331258564,1720167631885,-150.0,0.00044509,30]
[331258565,1720167631912,-462.6228344,0.00044519,30]
[331258566,1720167631939,-152.59839612,0.00044519,30]
[331258567,1720167631964,-199.74954741,0.00044519,30]
[331258568,1720167631993,-462.6228344,0.00044566,30]
[331258569,1720167632020,-152.59839612,0.00044566,30]
[331258570,1720167632045,-199.74954741,0.00044566,30]
[331258571,1720167632069,-1542.22283254,0.000446,33]
[331258572,1720167632095,-462.6228344,0.00044613,30]
[331258573,1720167632122,-152.59839612,0.00044613,30]
[331258574,1720167632150,-199.74954741,0.00044613,30]
[331258575,1720167632177,-1000.0,0.00044657,72]
[331258576,1720167632204,-462.6228344,0.0004466,30]
[331258577,1720167632230,-152.59839612,0.0004466,30]
[331258578,1720167632257,-199.74954741,0.0004466,30]
[331258579,1720167632283,-150.0,0.00044665,30]
[331258580,1720167632310,-462.6228344,0.00044707,30]
[331258581,1720167632337,-152.59839612,0.00044707,30]
[331258582,1720167632365,-199.74954741,0.00044707,30]
[331258583,1720167632391,-150.0,0.00044722,30]
[331258584,1720167632416,-912.23511563,0.0004474,120]
[331258585,1720167632440,-462.6228344,0.00044754,30]
[331258586,1720167632464,-152.59839612,0.00044754,30]
[331258587,1720167632492,-199.74954741,0.00044754,30]
[331258588,1720167632518,-2333.2,0.000448,60]
[331258589,1720167632543,-462.6228344,0.00044802,30]
[331258590,1720167632569,-152.59839612,0.00044802,30]
[331258591,1720167632600,-199.74954741,0.00044802,30]
[331258592,1720167632625,-152.0,0.00044806,31]
[331258593,1720167632651,-222.64813,0.0004482,30]
[331258594,1720167632675,-150.0,0.0004482,30]
[331258595,1720167632995,-462.6228344,0.00044849,30]
[331258596,1720167633026,-152.59839612,0.00044849,30]
[331258597,1720167633287,-199.74954741,0.00044849,30]
[331258598,1720167633314,-462.6228344,0.00044896,30]
[331258599,1720167633339,-152.59839612,0.00044896,30]
[331258600,1720167633364,-199.74954741,0.00044896,30]
[331258601,1720167633390,-6390.0880545,0.000449,35]
[331258602,1720167633416,-222.94618471,0.000449,61]
[331258603,1720167633440,-3012.0,0.000449,30]
[331258604,1720167633465,-500.0,0.00044931,120]
[331258605,1720167633493,-151.0,0.00044932,120]
[331258606,1720167633917,-462.6228344,0.00044943,30]
[331258607,1720167634126,-152.59839612,0.00044943,30]
[331258608,1720167634546,-199.74954741,0.00044943,30]
[331258609,1720167635292,-150.0,0.00044968,30]
[331258610,1720167636057,-150.0,0.00044976,30]
[331258611,1720167637080,-3112.48438391,0.0004498,30]
[331258612,1720167637398,-183.84444444,0.00044986,120]
[331258613,1720167637854,-462.6228344,0.0004499,30]
[331258614,1720167637881,-152.59839612,0.0004499,30]
[331258615,1720167637907,-199.74954741,0.0004499,30]
[331258616,1720167637934,-50000.0,0.00045,35]
[331258617,1720167637962,-50000.0,0.00045,45]
[331258618,1720167637988,-548.05166319,0.00045,120]
[331258619,1720167638014,-1458.38913763,0.00045,90]
[331258620,1720167638038,-1429.72159798,0.00045,45]
[331258621,1720167638065,-201.36895441,0.00045,30]
[331258622,1720167638091,-519.78880562,0.00045,30]
[331258623,1720167638117,-150.08333072,0.00045,30]
[331258624,1720167638147,-335.81331784,0.00045,35]
[331258625,1720167638175,-192.36002107,0.00045,120]
[331258626,1720167638202,-447.0009789,0.00045,30]
[331258627,1720167638228,-1334.27783308,0.00045,120]
[331258628,1720167638899,-231.59812895,0.00045,120]
[331258629,1720167639600,-2040.2060001,0.00045,30]
[331258630,1720167639868,-1315.88278676,0.00045,120]
[331258631,1720167640417,-352810.95,0.00045,30]
[331258632,1720167640444,-150.0,0.00045,85]
[331258633,1720167640471,-150.0,0.00045,120]
[331258634,1720167640498,-428.99,0.00045,120]
[331258635,1720167640525,-2000.0,0.00045,60]
[331258636,1720167640552,-2000.0,0.00045,120]
[331258637,1720167640581,-2038.43,0.00045,60]
[331258638,1720167640607,-2019.19711107,0.00045,120]
[331258639,1720167640877,-31308.34861475,0.00045,120]
[331258640,1720167640903,-3145.0,0.00045,120]
[331258641,1720167640929,-588.44789,0.00045,30]
[331258642,1720167640957,-671.44198326,0.00045,60]
[331258643,1720167640983,-6800.08310603,0.00045,60]
[331258644,1720167641009,-7364.01894587,0.00045,60]
[331258645,1720167641035,-660.8903889,0.00045,120]
[331258646,1720167641060,-906.67003062,0.00045,120]
[331258647,1720167641087,-2757.0151885,0.00045,120]
[331258648,1720167641113,-6987.6116773,0.00045,120]
[331258649,1720167641143,-500000.0,0.00045,30]
[331258650,1720167641169,-200.0,0.00045,120]
[331258651,1720167641194,-954.74766511,0.00045,30]
[331258652,1720167641219,-2851.75598977,0.0004501,120]
[331258653,1720167641245,-1772.61711405,0.00045028,40]
[331258654,1720167641270,-182.63173799,0.00045028,40]
[331258655,1720167641297,-177.40926763,0.00045028,40]
[331258656,1720167641321,-235.74564725,0.00045028,40]
[331258657,1720167641683,-462.6228344,0.00045037,30]
[331258658,1720167641708,-152.59839612,0.00045037,30]
[331258659,1720167642192,-199.74954741,0.00045037,30]
[331258660,1720167642439,-150.0,0.00045059,120]
[331258661,1720167643138,-462.6228344,0.00045085,30]
[331258662,1720167643218,-152.59839612,0.00045085,30]
[331258663,1720167643246,-199.74954741,0.00045085,30]
[331258664,1720167643272,-1040.66748,0.00045088,30]
[331258665,1720167643300,-462.6228344,0.00045132,30]
[331258666,1720167643326,-152.59839612,0.00045132,30]
[331258667,1720167643351,-199.74954741,0.00045132,30]
[331258668,1720167643376,-150.0,0.00045132,30]
[331258669,1720167643401,-250.8397,0.0004514,30]
[331258670,1720167643428,-462.6228344,0.00045179,30]
[331258671,1720167643460,-152.59839612,0.00045179,30]
[331258672,1720167643487,-199.74954741,0.00045179,30]
[331258673,1720167643514,-2108.15131147,0.000452,120]
[331258674,1720167643540,-2945.59,0.00045205,120]
[331258675,1720167643566,-150.0,0.00045214,30]
[331258676,1720167643595,-462.6228344,0.00045226,30]
[331258677,1720167643623,-152.59839612,0.00045226,30]
[331258678,1720167643649,-199.74954741,0.00045226,30]
[331258679,1720167643677,-300.0,0.00045262,30]
[331258680,1720167643704,-462.6228344,0.00045273,30]
[331258681,1720167643730,-152.59839612,0.00045273,30]
[331258682,1720167643758,-199.74954741,0.00045273,30]
[331258683,1720167643783,-150.0,0.00045287,30]
[331258684,1720167643808,-1040.66748,0.00045288,30]
[331258685,1720167643836,-462.6228344,0.0004532,30]
[331258686,1720167643863,-152.59839612,0.0004532,30]
[331258687,1720167643888,-199.74954741,0.0004532,30]
[331258688,1720167643915,-462.6228344,0.00045368,30]
[331258689,1720167644088,-152.59839612,0.00045368,30]
[331258690,1720167644115,-199.74954741,0.00045368,30]
[331258691,1720167644144,-300000.0,0.000454,120]
[331258692,1720167644170,-100000.0,0.000454,120]
[331258693,1720167644196,-229.0,0.000454,30]
[331258694,1720167644237,-223.0,0.000454,30]
[331258695,1720167644271,-462.6228344,0.00045415,30]
[331258696,1720167644299,-152.59839612,0.00045415,30]
[331258697,1720167644328,-199.74954741,0.00045415,30]
[331258698,1720167644356,-150.0,0.00045443,30]
[331258699,1720167644385,-150.0,0.00045459,30]
[331258700,1720167644414,-462.6228344,0.00045462,30]
[331258701,1720167644443,-152.59839612,0.00045462,30]
[331258702,1720167644472,-199.74954741,0.00045462,30]
[331258703,1720167644502,-500.0,0.00045479,120]
[331258704,1720167644533,-1000.0,0.00045479,74]
[331258705,1720167644562,-1040.66748,0.00045488,30]
[331258706,1720167644592,-491.0,0.000455,33]
[331258707,1720167644619,-15000.0,0.000455,30]
[331258708,1720167644650,-191.0,0.000455,33]
[331258709,1720167644681,-462.6228344,0.00045509,30]
[331258710,1720167644708,-152.59839612,0.00045509,30]
[331258711,1720167644736,-199.74954741,0.00045509,30]
[331258712,1720167644764,-150.0,0.00045521,30]
[331258713,1720167644793,-462.6228344,0.00045556,30]
[331258714,1720167644820,-152.59839612,0.00045556,30]
[331258715,1720167644853,-199.74954741,0.00045556,30]
[331258716,1720167644883,-150.0,0.00045599,30]
[331258717,1720167644912,-462.6228344,0.00045603,30]
[331258718,1720167644942,-152.59839612,0.00045603,30]
[331258719,1720167644973,-199.74954741,0.00045603,30]
[331258720,1720167645006,-462.6228344,0.0004565,30]
[331258721,1720167645034,-152.59839612,0.0004565,30]
[331258722,1720167645062,-199.74954741,0.0004565,30]
[331258723,1720167645091,-1040.66748,0.00045688,30]
[331258724,1720167645122,-462.6228344,0.00045698,30]
[331258725,1720167645157,-152.59839612,0.00045698,30]
[331258726,1720167645186,-199.74954741,0.00045698,30]
[331258727,1720167645216,-183.84444444,0.00045699,120]
[331258728,1720167645250,-1265.6194394,0.000457,30]
[331258729,1720167645282,-150.0,0.00045705,30]
[331258730,1720167645312,-462.6228344,0.00045745,30]
[331258731,1720167645339,-152.59839612,0.00045745,30]
[331258732,1720167645365,-199.74954741,0.00045745,30]
[331258733,1720167645392,-150.0,0.00045754,30]
[331258734,1720167645421,-462.6228344,0.00045792,30]
[331258735,1720167645450,-152.59839612,0.00045792,30]
[331258736,1720167645478,-199.74954741,0.00045792,30]
[331258737,1720167645507,-462.6228344,0.00045839,30]
[331258738,1720167645535,-152.59839612,0.00045839,30]
[331258739,1720167645563,-199.74954741,0.00045839,30]
[331258740,1720167645594,-6712.337,0.00045875,120]
[331258741,1720167645623,-6712.338,0.00045875,120]
[331258742,1720167645653,-6712.338,0.00045875,120]
[331258743,1720167645680,-206.057,0.00045875,120]
[331258744,1720167645711,-206.057,0.00045875,120]
[331258745,1720167645738,-6712.337,0.00045875,120]
[331258746,1720167645765,-6712.338,0.00045875,120]
[331258747,1720167645792,-206.057,0.00045875,120]
[331258748,1720167645818,-162.966,0.00045875,120]
[331258749,1720167645844,-206.058,0.00045875,120]
[331258750,1720167645870,-162.966,0.00045875,120]
[331258751,1720167645896,-206.057,0.00045875,120]
[331258752,1720167645923,-1048.70935262,0.00045876,60]
[331258753,1720167645950,-2049.28071281,0.0004588,60]
[331258754,1720167645977,-223808.02184197,0.0004588,30]
[331258755,1720167646007,-462.6228344,0.00045886,30]
[331258756,1720167646036,-152.59839612,0.00045886,30]
[331258757,1720167646063,-199.74954741,0.00045886,30]
[331258758,1720167646093,-156.8194,0.00045888,30]
[331258759,1720167646119,-409.0,0.00045896,120]
[331258760,1720167646150,-1505.05839736,0.000459,120]
[331258761,1720167646178,-384.586946,0.000459,30]
[331258762,1720167646207,-150.0,0.0004591,30]
[331258763,1720167646236,-462.6228344,0.00045933,30]
[331258764,1720167646267,-152.59839612,0.00045933,30]
[331258765,1720167646293,-199.74954741,0.00045933,30]
[331258766,1720167646320,-150.0,0.00045951,30]
[331258767,1720167646348,-462.6228344,0.00045981,30]
[331258768,1720167646374,-152.59839612,0.00045981,30]
[331258769,1720167646400,-199.74954741,0.00045981,30]
[331258770,1720167646425,-409.0,0.00045986,120]
[331258771,1720167646452,-1000.0,0.00045999,120]
[331258772,1720167646480,-50000.0,0.00046,36]
[331258773,1720167646509,-50000.0,0.00046,46]
[331258774,1720167646533,-1703.1975037,0.00046,30]
[331258775,1720167646560,-183.91987002,0.00046,120]
[331258776,1720167646588,-1000.0,0.00046,30]
[331258777,1720167646616,-423.69583683,0.00046,120]
[331258778,1720167646647,-364.94669491,0.00046,120]
[331258779,1720167646676,-1000.0,0.00046,120]
[331258780,1720167646866,-1000.0,0.00046,120]
[331258781,1720167646892,-1000.0,0.00046,120]
[331258782,1720167646917,-1000.0,0.00046,120]
[331258783,1720167646943,-1000.0,0.00046,120]
[331258784,1720167646971,-1000.0,0.00046,120]
[331258785,1720167646999,-1000.0,0.00046,120]
[331258786,1720167647026,-1000.0,0.00046,120]
[331258787,1720167647051,-1000.0,0.00046,120]
[331258788,1720167647077,-726.84,0.00046,120]
[331258789,1720167647103,-69235.67,0.00046,120]
[331258790,1720167647131,-202.57,0.00046,120]
[331258791,1720167647158,-1000.0,0.00046,120]
[331258792,1720167647185,-1000.0,0.00046,120]
[331258793,1720167647213,-1000.0,0.00046,120]
[331258794,1720167647238,-1000.0,0.00046,120]
[331258795,1720167647264,-1000.0,0.00046,120]
[331258796,1720167647290,-1209.96,0.00046,120]
[331258797,1720167647316,-2000.0,0.00046,30]
[331258798,1720167647342,-168.4,0.00046,96]
[331258799,1720167647369,-632.0,0.00046,60]
[331258800,1720167647395,-1000.0,0.00046,120]
[331258801,1720167647420,-2000.0,0.00046,30]
[331258802,1720167647445,-2508.58046711,0.00046,120]
[331258803,1720167647471,-1518.44071835,0.00046,120]
[331258804,1720167647496,-590000.0,0.00046,120]
[331258805,1720167647521,-823.0,0.00046,120]
[331258806,1720167647546,-301.63,0.00046,120]
[331258807,1720167647572,-1002.27,0.00046,120]
[331258808,1720167647604,-15000.0,0.00046,120]
[331258809,1720167647633,-181.0,0.00046,120]
[331258810,1720167647659,-598.67955612,0.00046,30]
[331258811,1720167647686,-10000.0,0.00046,30]
[331258812,1720167647715,-2361.0,0.00046,30]
[331258813,1720167647744,-814.07785174,0.00046,120]
[331258814,1720167647771,-809.02,0.00046,120]
[331258815,1720167647802,-207.46563578,0.0004602,120]
[331258816,1720167647828,-500.0,0.00046027,120]
[331258817,1720167647858,-462.6228344,0.00046028,30]
[331258818,1720167647884,-152.59839612,0.00046028,30]
[331258819,1720167647911,-199.74954741,0.00046028,30]
[331258820,1720167647938,-150.0,0.00046065,30]
[331258821,1720167647964,-462.6228344,0.00046075,30]
[331258822,1720167647994,-152.59839612,0.00046075,30]
[331258823,1720167648021,-199.74954741,0.00046075,30]
[331258824,1720167648049,-1040.66748,0.00046088,30]
[331258825,1720167648075,-462.6228344,0.00046122,30]
[331258826,1720167648100,-152.59839612,0.00046122,30]
[331258827,1720167648134,-199.74954741,0.00046122,30]
[331258828,1720167648163,-150.0,0.00046159,120]
[331258829,1720167648191,-151.0,0.00046164,120]